[Event "MCR rapid mládeže 2023 U16"]
[Site "Harachov, Czech Republic"]
[Date "2023.09.09"]
[Round "3.18"]
[White "Frantsev, Iegor"]
[Black "Kozdon, Marek"]
[Result "1/2-1/2"]
[TimeControl "20min+5s/move"]
[WhiteElo "1431"]
[BlackElo "1548"]

1. d4 {[%clk 00:20:08]} {[%emt 00:00:02]} Nf6 {[%clk 00:20:06]} {[%emt
00:00:05]} 2. Nf3 {[%clk 00:20:03]} {[%emt 00:00:09]} e6 {[%clk 00:20:05]}
{[%emt 00:00:06]} 3. Bg5 {[%clk 00:20:06]} {[%emt 00:00:02]} Be7 {[%clk
00:19:57]} {[%emt 00:00:13]} 4. e3 {[%clk 00:20:08]} {[%emt 00:00:03]} b6
{[%clk 00:19:59]} {[%emt 00:00:04]} 5. Nbd2 {[%clk 00:19:53]} {[%emt 00:00:18]}
Bb7 {[%clk 00:20:01]} {[%emt 00:00:04]} 6. c3 {[%clk 00:19:39]} {[%emt
00:00:18]} d5 {[%clk 00:20:00]} {[%emt 00:00:07]} 7. Bd3 {[%clk 00:19:25]}
{[%emt 00:00:19]} Nbd7 {[%clk 00:20:00]} {[%emt 00:00:06]} 8. O-O {[%clk
00:19:19]} {[%emt 00:00:09]} O-O {[%clk 00:19:51]} {[%emt 00:00:15]} 9. Re1
{[%clk 00:19:10]} {[%emt 00:00:13]} Ne4 {[%clk 00:19:19]} {[%emt 00:00:38]} 10.
Bxe7 {[%clk 00:18:19]} {[%emt 00:00:56]} Qxe7 {[%clk 00:19:19]} {[%emt
00:00:04]} 11. h3 {[%clk 00:16:42]} {[%emt 00:01:41]} Rac8 {[%clk 00:17:49]}
{[%emt 00:01:37]} 12. Nh2 {[%clk 00:13:36]} {[%emt 00:03:10]} Qh4 {[%clk
00:15:25]} {[%emt 00:02:29]} 13. Qe2 {[%clk 00:12:35]} {[%emt 00:01:05]} Ndf6
{[%clk 00:14:49]} {[%emt 00:00:43]} 14. Nxe4 {[%clk 00:10:22]} {[%emt
00:02:17]} Nxe4 {[%clk 00:14:01]} {[%emt 00:00:53]} 15. Bxe4 {[%clk 00:09:51]}
{[%emt 00:00:36]} dxe4 {[%clk 00:13:09]} {[%emt 00:00:57]} 16. Qg4 {[%clk
00:08:16]} {[%emt 00:01:40]} Qxg4 {[%clk 00:12:27]} {[%emt 00:00:48]} 17. Nxg4
{[%clk 00:07:33]} {[%emt 00:00:47]} Rfd8 {[%clk 00:11:48]} {[%emt 00:00:44]} 18.
Rad1 {[%clk 00:05:14]} {[%emt 00:02:24]} f6 {[%clk 00:10:35]} {[%emt 00:01:18]}
19. Nh2 {[%clk 00:04:21]} {[%emt 00:00:57]} Bd5 {[%clk 00:10:03]} {[%emt
00:00:38]} 20. Ra1 {[%clk 00:04:03]} {[%emt 00:00:22]} Kf7 {[%clk 00:09:40]}
{[%emt 00:00:29]} 21. Rac1 {[%clk 00:02:53]} {[%emt 00:01:13]} b5 {[%clk
00:09:21]} {[%emt 00:00:26]} 22. a3 {[%clk 00:02:09]} {[%emt 00:00:49]} Rd6
{[%clk 00:09:00]} {[%emt 00:00:26]} 23. Nf1 {[%clk 00:01:38]} {[%emt 00:00:36]}
Rc6 {[%clk 00:08:23]} {[%emt 00:00:42]} 24. Nd2 {[%clk 00:01:34]} {[%emt
00:00:09]} Rb8 {[%clk 00:08:15]} {[%emt 00:00:13]} 25. f3 {[%clk 00:00:53]}
{[%emt 00:00:46]} exf3 {[%clk 00:07:46]} {[%emt 00:00:35]} 26. gxf3 {[%clk
00:00:44]} {[%emt 00:00:12]} Rd6 {[%clk 00:06:59]} {[%emt 00:00:53]} 27. e4
{[%clk 00:00:22]} {[%emt 00:00:28]} Ba8 {[%clk 00:06:51]} {[%emt 00:00:12]} 28.
Kf2 {[%clk 00:00:16]} {[%emt 00:00:10]} c5 {[%clk 00:06:23]} {[%emt 00:00:34]}
29. Nb3 {[%clk 00:00:15]} {[%emt 00:00:06]} c4 {[%clk 00:06:18]} {[%emt
00:00:09]} 30. Nd2 {[%clk 00:00:18]} {[%emt 00:00:02]} Rd7 {[%clk 00:05:44]}
{[%emt 00:00:40]} 31. Nf1 {[%clk 00:00:16]} {[%emt 00:00:06]} a5 {[%clk
00:05:27]} {[%emt 00:00:23]} 32. Ng3 {[%clk 00:00:14]} {[%emt 00:00:06]} g6
{[%clk 00:05:20]} {[%emt 00:00:13]} 33. e5 {[%clk 00:00:16]} {[%emt 00:00:03]}
fxe5 {[%clk 00:04:44]} {[%emt 00:00:41]} 34. Rxe5 {[%clk 00:00:19]} {[%emt
00:00:01]} Rd5 {[%clk 00:04:35]} {[%emt 00:00:15]} 35. Rce1 {[%clk 00:00:18]}
{[%emt 00:00:05]} Rxe5 {[%clk 00:04:22]} {[%emt 00:00:18]} 36. Rxe5 {[%clk
00:00:21]} {[%emt 00:00:02]} Bd5 {[%clk 00:03:57]} {[%emt 00:00:31]} 37. Ne4
{[%clk 00:00:10]} {[%emt 00:00:16]} Bxe4 {[%clk 00:03:40]} {[%emt 00:00:22]} 38.
fxe4 {[%clk 00:00:13]} {[%emt 00:00:01]} Kf6 {[%clk 00:03:24]} {[%emt
00:00:21]} 39. Rc5 {[%clk 00:00:16]} {[%emt 00:00:02]} Rb7 {[%clk 00:03:16]}
{[%emt 00:00:14]} 40. Kf3 {[%clk 00:00:19]} {[%emt 00:00:02]} g5 {[%clk
00:03:01]} {[%emt 00:00:20]} 41. Rc6 {[%clk 00:00:15]} {[%emt 00:00:08]} h5
{[%clk 00:02:41]} {[%emt 00:00:25]} 42. Ra6 {[%clk 00:00:13]} {[%emt 00:00:07]}
a4 {[%clk 00:02:44]} {[%emt 00:00:03]} 43. Rc6 {[%clk 00:00:13]} {[%emt
00:00:04]} Rb8 {[%clk 00:02:17]} {[%emt 00:00:33]} 44. d5 {[%clk 00:00:16]}
{[%emt 00:00:02]} Re8 {[%clk 00:02:06]} {[%emt 00:00:15]} 45. Rb6 {[%clk
00:00:16]} {[%emt 00:00:05]} Ke5 {[%clk 00:02:04]} {[%emt 00:00:08]} 46. dxe6
{[%clk 00:00:17]} {[%emt 00:00:04]} Rxe6 {[%clk 00:02:03]} {[%emt 00:00:07]} 47.
Rxb5+ {[%clk 00:00:20]} {[%emt 00:00:01]} Kf6 {[%clk 00:02:06]} {[%emt
00:00:02]} 48. Rf5+ {[%clk 00:00:21]} {[%emt 00:00:05]} Kg6 {[%clk 00:02:07]}
{[%emt 00:00:03]} 49. Rc5 {[%clk 00:00:22]} {[%emt 00:00:04]} Rb6 {[%clk
00:01:45]} {[%emt 00:00:27]} 50. Rxc4 {[%clk 00:00:22]} {[%emt 00:00:05]} Rxb2
{[%clk 00:01:48]} {[%emt 00:00:02]} 51. Rxa4 {[%clk 00:00:19]} {[%emt
00:00:08]} Rb3 {[%clk 00:01:52]} {[%emt 00:00:01]} 52. Ra6+ {[%clk 00:00:21]}
{[%emt 00:00:03]} Kg7 {[%clk 00:01:50]} {[%emt 00:00:07]} 53. Rc6 {[%clk
00:00:16]} {[%emt 00:00:09]} Rxa3 {[%clk 00:01:45]} {[%emt 00:00:11]} 54. Kg3
{[%clk 00:00:14]} {[%emt 00:00:08]} Ra4 {[%clk 00:01:29]} {[%emt 00:00:21]} 55.
Re6 {[%clk 00:00:08]} {[%emt 00:00:10]} Rc4 {[%clk 00:01:31]} {[%emt 00:00:03]}
56. Kg2 {[%clk 00:00:09]} {[%emt 00:00:04]} Rxc3 {[%clk 00:01:30]} {[%emt
00:00:07]} 57. Re5 {[%clk 00:00:11]} {[%emt 00:00:01]} Kf6 {[%clk 00:01:30]}
{[%emt 00:00:06]} 58. Rf5+ {[%clk 00:00:14]} {[%emt 00:00:02]} Kg6 {[%clk
00:01:34]} {[%emt 00:00:01]} 59. Rd5 {[%clk 00:00:11]} {[%emt 00:00:07]} Re3
{[%clk 00:01:33]} {[%emt 00:00:07]} 60. Re5 {[%clk 00:00:12]} {[%emt 00:00:04]}
Kf6 {[%clk 00:01:34]} {[%emt 00:00:04]} 61. Rf5+ {[%clk 00:00:16]} {[%emt
00:00:01]} Kg6 {[%clk 00:01:38]} {[%emt 00:00:01]} 62. Re5 {[%clk 00:00:18]}
{[%emt 00:00:03]} Kf6 {[%clk 00:01:42]} {[%emt 00:00:01]} 1/2-1/2

[Event "MCR rapid mládeže 2023 U16"]
[Site "Harachov, Czech Republic"]
[Date "2023.09.09"]
[Round "3.19"]
[White "Boff, Ondrej"]
[Black "Walder, Hugo"]
[Result "1/2-1/2"]
[TimeControl "20min+5s/move"]
[WhiteElo "1486"]
[BlackElo "1403"]

1. e4 {[%clk 00:20:02]} {[%emt 00:00:08]} e5 {[%clk 00:20:08]} {[%emt
00:00:03]} 2. Nc3 {[%clk 00:20:03]} {[%emt 00:00:03]} Nc6 {[%clk 00:20:10]}
{[%emt 00:00:04]} 3. f4 {[%clk 00:19:59]} {[%emt 00:00:09]} d6 {[%clk
00:19:36]} {[%emt 00:00:39]} 4. Nf3 {[%clk 00:19:55]} {[%emt 00:00:08]} Nf6
{[%clk 00:19:17]} {[%emt 00:00:24]} 5. Bb5 {[%clk 00:19:24]} {[%emt 00:00:36]}
Bg4 {[%clk 00:19:07]} {[%emt 00:00:16]} 6. O-O {[%clk 00:19:16]} {[%emt
00:00:12]} Be7 {[%clk 00:18:48]} {[%emt 00:00:25]} 7. d3 {[%clk 00:18:50]}
{[%emt 00:00:31]} O-O {[%clk 00:18:37]} {[%emt 00:00:16]} 8. Bxc6 {[%clk
00:17:36]} {[%emt 00:01:19]} bxc6 {[%clk 00:18:33]} {[%emt 00:00:09]} 9. h3
{[%clk 00:16:57]} {[%emt 00:00:43]} Bxf3 {[%clk 00:18:30]} {[%emt 00:00:08]} 10.
Qxf3 {[%clk 00:16:58]} {[%emt 00:00:04]} exf4 {[%clk 00:18:16]} {[%emt
00:00:20]} 11. Bxf4 {[%clk 00:16:49]} {[%emt 00:00:13]} d5 {[%clk 00:17:05]}
{[%emt 00:01:17]} 12. e5 {[%clk 00:15:54]} {[%emt 00:00:59]} Bc5+ {[%clk
00:16:45]} {[%emt 00:00:24]} 13. Kh1 {[%clk 00:14:05]} {[%emt 00:01:55]} Nd7
{[%clk 00:16:33]} {[%emt 00:00:18]} 14. Ne2 {[%clk 00:11:50]} {[%emt 00:02:18]}
Rb8 {[%clk 00:15:27]} {[%emt 00:01:13]} 15. d4 {[%clk 00:11:28]} {[%emt
00:00:27]} Be7 {[%clk 00:15:18]} {[%emt 00:00:14]} 16. Rab1 {[%clk 00:10:10]}
{[%emt 00:01:23]} Nb6 {[%clk 00:14:11]} {[%emt 00:01:12]} 17. Be3 {[%clk
00:06:45]} {[%emt 00:03:29]} Nc4 {[%clk 00:14:01]} {[%emt 00:00:16]} 18. b3
{[%clk 00:06:30]} {[%emt 00:00:19]} Nxe3 {[%clk 00:13:03]} {[%emt 00:01:03]} 19.
Qxe3 {[%clk 00:06:33]} {[%emt 00:00:02]} Bg5 {[%clk 00:12:46]} {[%emt
00:00:22]} 20. Qc3 {[%clk 00:06:14]} {[%emt 00:00:25]} Qd7 {[%clk 00:12:15]}
{[%emt 00:00:36]} 21. Nf4 {[%clk 00:05:22]} {[%emt 00:00:56]} g6 {[%clk
00:09:14]} {[%emt 00:03:07]} 22. Rbe1 {[%clk 00:04:45]} {[%emt 00:00:41]} Rfe8
{[%clk 00:08:42]} {[%emt 00:00:38]} 23. Qg3 {[%clk 00:04:07]} {[%emt 00:00:40]}
Bxf4 {[%clk 00:08:28]} {[%emt 00:00:21]} 24. Rxf4 {[%clk 00:03:35]} {[%emt
00:00:37]} Re6 {[%clk 00:08:12]} {[%emt 00:00:20]} 25. Ref1 {[%clk 00:03:14]}
{[%emt 00:00:27]} Rf8 {[%clk 00:08:00]} {[%emt 00:00:17]} 26. h4 {[%clk
00:02:49]} {[%emt 00:00:31]} c5 {[%clk 00:05:40]} {[%emt 00:02:25]} 27. Rd1
{[%clk 00:01:31]} {[%emt 00:01:21]} cxd4 {[%clk 00:05:38]} {[%emt 00:00:08]} 28.
Rfxd4 {[%clk 00:01:30]} {[%emt 00:00:06]} c6 {[%clk 00:04:49]} {[%emt
00:00:55]} 29. c4 {[%clk 00:01:25]} {[%emt 00:00:09]} Rd8 {[%clk 00:04:44]}
{[%emt 00:00:08]} 30. Qf4 {[%clk 00:01:14]} {[%emt 00:00:17]} Qb7 {[%clk
00:04:08]} {[%emt 00:00:41]} 31. g3 {[%clk 00:01:00]} {[%emt 00:00:21]} Rde8
{[%clk 00:03:45]} {[%emt 00:00:26]} 32. cxd5 {[%clk 00:00:34]} {[%emt
00:00:32]} cxd5 {[%clk 00:03:47]} {[%emt 00:00:04]} 33. Kh2 {[%clk 00:00:17]}
{[%emt 00:00:21]} Rxe5 {[%clk 00:03:28]} {[%emt 00:00:25]} 34. Rb4 {[%clk
00:00:18]} {[%emt 00:00:04]} Re2+ {[%clk 00:03:06]} {[%emt 00:00:27]} 35. Kg1
{[%clk 00:00:10]} {[%emt 00:00:12]} Qc6 {[%clk 00:01:55]} {[%emt 00:01:14]} 36.
Rf1 {[%clk 00:00:07]} {[%emt 00:00:10]} Qe6 {[%clk 00:01:02]} {[%emt 00:00:58]}
37. Rd4 {[%clk 00:00:08]} {[%emt 00:00:06]} Rxa2 {[%clk 00:00:57]} {[%emt
00:00:09]} 38. Qf3 {[%clk 00:00:09]} {[%emt 00:00:03]} Qe3+ {[%clk 00:00:43]}
{[%emt 00:00:19]} 39. Qxe3 {[%clk 00:00:12]} {[%emt 00:00:03]} Rxe3 {[%clk
00:00:46]} {[%emt 00:00:01]} 40. Rxd5 {[%clk 00:00:15]} {[%emt 00:00:03]} Rxg3+
{[%clk 00:00:50]} {[%emt 00:00:01]} 41. Kh1 {[%clk 00:00:18]} {[%emt 00:00:02]}
Rh3+ {[%clk 00:00:30]} {[%emt 00:00:24]} 42. Kg1 {[%clk 00:00:21]} {[%emt
00:00:02]} Rhh2 {[%clk 00:00:29]} {[%emt 00:00:11]} 43. Rf3 {[%clk 00:00:19]}
{[%emt 00:00:12]} Rxh4 {[%clk 00:00:25]} {[%emt 00:00:09]} 44. Rd8+ {[%clk
00:00:22]} {[%emt 00:00:02]} Kg7 {[%clk 00:00:22]} {[%emt 00:00:08]} 45. Rd7
{[%clk 00:00:25]} {[%emt 00:00:02]} Rg4+ {[%clk 00:00:26]} {[%emt 00:00:02]} 46.
Kh1 {[%clk 00:00:11]} {[%emt 00:00:19]} Rh4+ {[%clk 00:00:23]} {[%emt
00:00:08]} 47. Kg1 {[%clk 00:00:15]} {[%emt 00:00:01]} Re4 {[%clk 00:00:16]}
{[%emt 00:00:12]} 48. Rfxf7+ {[%clk 00:00:13]} {[%emt 00:00:07]} Kh6 {[%clk
00:00:18]} {[%emt 00:00:03]} 49. Rxh7+ {[%clk 00:00:11]} {[%emt 00:00:06]} Kg5
{[%clk 00:00:22]} {[%emt 00:00:02]} 50. Rd1 {[%clk 00:00:14]} {[%emt 00:00:02]}
Rg4+ {[%clk 00:00:25]} {[%emt 00:00:03]} 51. Kf1 {[%clk 00:00:13]} {[%emt
00:00:04]} Rg3 {[%clk 00:00:23]} {[%emt 00:00:07]} 52. Rhd7 {[%clk 00:00:11]}
{[%emt 00:00:07]} Rxb3 {[%clk 00:00:24]} {[%emt 00:00:05]} 53. R7d6 {[%clk
00:00:07]} {[%emt 00:00:08]} Rf3+ {[%clk 00:00:26]} {[%emt 00:00:03]} 54. Kg1
{[%clk 00:00:10]} {[%emt 00:00:02]} Rf5 {[%clk 00:00:29]} {[%emt 00:00:02]} 55.
Rc6 {[%clk 00:00:11]} {[%emt 00:00:05]} Ra4 {[%clk 00:00:32]} {[%emt 00:00:02]}
56. Rdd6 {[%clk 00:00:09]} {[%emt 00:00:07]} Rg4+ {[%clk 00:00:35]} {[%emt
00:00:02]} 57. Kh2 {[%clk 00:00:13]} {[%emt 00:00:01]} Kh6 {[%clk 00:00:36]}
{[%emt 00:00:04]} 58. Kh3 {[%clk 00:00:09]} {[%emt 00:00:09]} Rfg5 {[%clk
00:00:32]} {[%emt 00:00:10]} 59. Ra6 {[%clk 00:00:09]} {[%emt 00:00:04]} Rg3+
{[%clk 00:00:33]} {[%emt 00:00:03]} 60. Kh2 {[%clk 00:00:13]} {[%emt 00:00:01]}
R3g4 {[%clk 00:00:35]} {[%emt 00:00:03]} 61. Kh3 {[%clk 00:00:16]} Rg1 {[%clk
00:00:39]} {[%emt 00:00:01]} 62. Kh2 {[%clk 00:00:19]} {[%emt 00:00:02]} R5g2+
{[%clk 00:00:42]} {[%emt 00:00:02]} 63. Kh3 {[%clk 00:00:23]} {[%emt 00:00:02]}
Rg5 {[%clk 00:00:41]} {[%emt 00:00:05]} 64. Kh2 {[%clk 00:00:23]} {[%emt
00:00:05]} Re1 {[%clk 00:00:41]} {[%emt 00:00:05]} 65. Rxa7 {[%clk 00:00:18]}
{[%emt 00:00:11]} Re4 {[%clk 00:00:43]} {[%emt 00:00:03]} 66. Kh3 {[%clk
00:00:19]} {[%emt 00:00:04]} Re1 {[%clk 00:00:44]} {[%emt 00:00:04]} 67. Kh2
{[%clk 00:00:21]} {[%emt 00:00:02]} Rh5+ {[%clk 00:00:45]} {[%emt 00:00:05]} 68.
Kg3 {[%clk 00:00:22]} {[%emt 00:00:04]} Rg1+ {[%clk 00:00:49]} {[%emt
00:00:02]} 69. Kf2 {[%clk 00:00:24]} {[%emt 00:00:01]} Rgg5 {[%clk 00:00:51]}
{[%emt 00:00:04]} 70. Raa6 {[%clk 00:00:27]} {[%emt 00:00:02]} Rf5+ {[%clk
00:00:54]} {[%emt 00:00:02]} 71. Ke3 {[%clk 00:00:28]} {[%emt 00:00:02]} Rhg5
{[%clk 00:00:58]} {[%emt 00:00:03]} 72. Ke4 {[%clk 00:00:25]} {[%emt 00:00:07]}
Rg4+ {[%clk 00:01:01]} {[%emt 00:00:03]} 73. Ke3 {[%clk 00:00:29]} {[%emt
00:00:01]} Kh5 {[%clk 00:01:03]} 74. Ke2 {[%clk 00:00:31]} {[%emt 00:00:04]}
Rfg5 {[%clk 00:00:57]} {[%emt 00:00:11]} 75. Rd8 {[%clk 00:00:31]} {[%emt
00:00:05]} Rg2+ {[%clk 00:00:59]} {[%emt 00:00:02]} 76. Kf3 {[%clk 00:00:34]}
{[%emt 00:00:02]} R2g3+ {[%clk 00:01:01]} {[%emt 00:00:04]} 77. Kf2 {[%clk
00:00:37]} {[%emt 00:00:02]} Kg4 {[%clk 00:01:04]} {[%emt 00:00:02]} 78. Rd4+
{[%clk 00:00:28]} {[%emt 00:00:15]} Kh5 {[%clk 00:01:07]} {[%emt 00:00:02]} 79.
Rdd6 {[%clk 00:00:22]} {[%emt 00:00:10]} R3g4 {[%clk 00:01:09]} {[%emt
00:00:03]} 80. Kf3 {[%clk 00:00:24]} {[%emt 00:00:03]} Rf5+ {[%clk 00:01:11]}
{[%emt 00:00:05]} 81. Ke3 {[%clk 00:00:26]} {[%emt 00:00:02]} Rgg5 {[%clk
00:01:13]} {[%emt 00:00:03]} 82. Kf2 {[%emt 00:00:17]} 1/2-1/2

[Event "MCR rapid mládeže 2023 U16"]
[Site "Harachov, Czech Republic"]
[Date "2023.09.09"]
[Round "3.20"]
[White "Zimovcak, Krystof"]
[Black "Artamonov, Mikhail"]
[Result "1-0"]
[TimeControl "20min+5s/move"]
[WhiteElo "1325"]
[BlackElo "1486"]

1. e4 {[%clk 00:20:08]} {[%emt 00:00:01]} e6 {[%clk 00:20:09]} {[%emt
00:00:01]} 2. Nc3 {[%clk 00:20:03]} {[%emt 00:00:10]} d5 {[%clk 00:20:09]}
{[%emt 00:00:06]} 3. exd5 {[%clk 00:19:59]} {[%emt 00:00:09]} exd5 {[%clk
00:20:13]} {[%emt 00:00:01]} 4. d4 {[%clk 00:20:03]} {[%emt 00:00:01]} Nf6
{[%clk 00:20:08]} {[%emt 00:00:10]} 5. Nf3 {[%clk 00:20:03]} {[%emt 00:00:04]}
Bg4 {[%clk 00:19:32]} {[%emt 00:00:41]} 6. Be2 {[%clk 00:20:00]} {[%emt
00:00:07]} Bb4 {[%clk 00:19:10]} {[%emt 00:00:28]} 7. O-O {[%clk 00:19:49]}
{[%emt 00:00:16]} O-O {[%clk 00:19:07]} {[%emt 00:00:09]} 8. a3 {[%clk
00:19:52]} {[%emt 00:00:02]} Bd6 {[%clk 00:18:43]} {[%emt 00:00:29]} 9. Bg5
{[%clk 00:19:25]} {[%emt 00:00:32]} c6 {[%clk 00:18:30]} {[%emt 00:00:18]} 10.
Re1 {[%clk 00:19:02]} {[%emt 00:00:27]} Bc7 {[%clk 00:17:53]} {[%emt 00:00:41]}
11. Bh4 {[%clk 00:17:37]} {[%emt 00:01:31]} Nbd7 {[%clk 00:16:46]} {[%emt
00:01:12]} 12. Ne5 {[%clk 00:17:10]} {[%emt 00:00:32]} Bxe2 {[%clk 00:15:56]}
{[%emt 00:00:55]} 13. Rxe2 {[%clk 00:17:13]} {[%emt 00:00:02]} Re8 {[%clk
00:14:35]} {[%emt 00:01:26]} 14. Nxd7 {[%clk 00:16:53]} {[%emt 00:00:26]} Qxd7
{[%clk 00:14:37]} {[%emt 00:00:03]} 15. Bxf6 {[%clk 00:16:45]} {[%emt
00:00:13]} gxf6 {[%clk 00:14:40]} {[%emt 00:00:01]} 16. Re3 {[%clk 00:16:37]}
{[%emt 00:00:13]} Rxe3 {[%clk 00:14:23]} {[%emt 00:00:22]} 17. fxe3 {[%clk
00:16:40]} {[%emt 00:00:01]} Qe6 {[%clk 00:13:04]} {[%emt 00:01:25]} 18. Qf3
{[%clk 00:16:21]} {[%emt 00:00:18]} Re8 {[%clk 00:12:37]} {[%emt 00:00:37]} 19.
Re1 {[%clk 00:16:24]} {[%emt 00:00:02]} Kh8 {[%clk 00:11:45]} {[%emt 00:00:57]}
20. Nd1 {[%clk 00:15:12]} {[%emt 00:01:17]} f5 {[%clk 00:10:19]} {[%emt
00:01:32]} 21. Rf1 {[%clk 00:14:35]} {[%emt 00:00:42]} Qh6 {[%clk 00:07:55]}
{[%emt 00:02:29]} 22. h3 {[%clk 00:13:34]} {[%emt 00:01:05]} Qd6 {[%clk
00:07:45]} {[%emt 00:00:14]} 23. Qxf5 {[%clk 00:12:36]} {[%emt 00:01:04]} Qh2+
{[%clk 00:07:10]} {[%emt 00:00:41]} 24. Kf2 {[%clk 00:12:31]} {[%emt 00:00:04]}
Qg3+ {[%clk 00:06:05]} {[%emt 00:01:15]} 25. Ke2 {[%clk 00:12:35]} {[%emt
00:00:02]} Qxg2+ {[%clk 00:05:59]} {[%emt 00:00:11]} 26. Rf2 {[%clk 00:12:38]}
{[%emt 00:00:01]} Qg6 {[%clk 00:04:24]} {[%emt 00:01:40]} 27. Qxg6 {[%clk
00:12:28]} {[%emt 00:00:15]} fxg6 {[%clk 00:04:15]} {[%emt 00:00:14]} 28. Rf7
{[%clk 00:12:31]} {[%emt 00:00:01]} Rc8 {[%clk 00:03:45]} {[%emt 00:00:35]} 29.
Nf2 {[%clk 00:12:33]} {[%emt 00:00:03]} Kg8 {[%clk 00:03:45]} {[%emt 00:00:05]}
30. Rd7 {[%clk 00:12:36]} {[%emt 00:00:02]} h5 {[%clk 00:03:19]} {[%emt
00:00:31]} 31. e4 {[%clk 00:12:10]} {[%emt 00:00:31]} Bb6 {[%clk 00:01:52]}
{[%emt 00:01:33]} 32. c3 {[%clk 00:11:56]} {[%emt 00:00:18]} dxe4 {[%clk
00:01:35]} {[%emt 00:00:23]} 33. Nxe4 {[%clk 00:11:45]} {[%emt 00:00:16]} Rc7
{[%clk 00:01:28]} {[%emt 00:00:12]} 34. Nf6+ {[%clk 00:10:34]} {[%emt
00:01:16]} Kf8 {[%clk 00:01:23]} {[%emt 00:00:09]} 35. Kf3 {[%clk 00:10:23]}
{[%emt 00:00:15]} Rxd7 {[%clk 00:00:58]} {[%emt 00:00:31]} 36. Nxd7+ {[%clk
00:10:27]} {[%emt 00:00:02]} Kf7 {[%clk 00:00:56]} {[%emt 00:00:05]} 37. Nxb6
{[%clk 00:09:58]} {[%emt 00:00:35]} axb6 {[%clk 00:01:00]} {[%emt 00:00:01]} 38.
Kf4 {[%clk 00:10:02]} {[%emt 00:00:01]} Kf6 {[%clk 00:01:03]} {[%emt 00:00:02]}
39. h4 {[%clk 00:10:07]} b5 {[%clk 00:00:45]} {[%emt 00:00:24]} 40. b3 {[%clk
00:10:04]} {[%emt 00:00:08]} Kf7 {[%clk 00:00:18]} {[%emt 00:00:32]} 41. c4
{[%clk 00:10:06]} {[%emt 00:00:04]} bxc4 {[%clk 00:00:10]} {[%emt 00:00:12]} 42.
bxc4 {[%clk 00:10:09]} {[%emt 00:00:02]} b6 {[%clk 00:00:15]} {[%emt 00:00:01]}
43. d5 {[%clk 00:10:07]} {[%emt 00:00:06]} cxd5 {[%emt 00:00:33]} 44. cxd5 b5
45. Kg5 {[%emt 00:00:01]} Ke7 {[%emt 00:00:03]} 46. Kxg6 {[%emt 00:00:02]} Kd6
47. Kxh5 {[%emt 00:00:03]} Kxd5 {[%clk 00:00:00]} {[%emt 00:00:01]} 48. Kg5 1-0